lending/lending_fUSD_20240411
["ID","MTS","AMOUNT","RATE_DAILY","PERIOD"]
[322133667,1712835045729,-500.0,0.00032876,2]
[322133668,1712835045737,-500.0,0.00032876,2]
[322133669,1712835045747,-500.0,0.00032876,2]
[322133670,1712835045755,-514.93,0.00032876,2]
[322133671,1712835045764,-500.0,0.00032876,2]
[322133672,1712835045772,-500.0,0.00032876,2]
[322133673,1712835045780,-500.0,0.00032876,2]
[322133674,1712835045789,-1323.6,0.00032876,2]
[322133675,1712835045797,-500.0,0.00032876,2]
[322133676,1712835045807,-500.0,0.00032876,2]
[322133677,1712835045816,-500.0,0.00032876,2]
[322133678,1712835045825,-500.0,0.00032876,2]
[322133679,1712835045834,-925.5,0.00032876,2]
[322133680,1712835045842,-3628.77,0.00032876,2]
[322133681,1712835045852,-500.0,0.00032876,2]
[322133682,1712835045861,-506.96,0.00032876,2]
[322133683,1712835045869,-528.78559767,0.00032876,2]
[322133684,1712835045878,-500.0,0.00032876,2]
[322133685,1712835045887,-500.0,0.00032876,2]
[322133686,1712835045896,-500.0,0.00032876,2]
[322133687,1712835045905,-500.0,0.00032876,2]
[322133688,1712835045914,-500.0,0.00032876,2]
[322133689,1712835045922,-500.0,0.00032876,2]
[322133690,1712835045930,-500.0,0.00032876,2]
[322133691,1712835045939,-500.0,0.00032876,2]
[322133692,1712835045947,-1108.62,0.00032876,2]
[322133693,1712835045956,-572.14,0.00032876,2]
[322133694,1712835045965,-500.0,0.00032876,2]
[322133695,1712835045974,-500.0,0.00032876,2]
[322133696,1712835045983,-1141.88,0.00032876,2]
[322133697,1712835045991,-500.0,0.00032876,2]
[322133698,1712835046000,-500.0,0.00032876,2]
[322133699,1712835046009,-30911.29,0.00032876,2]
[322133701,1712835046018,-500.0,0.00032876,2]
[322133702,1712835046027,-500.0,0.00032876,2]
[322133703,1712835046034,-500.0,0.00032876,2]
[322133704,1712835046041,-500.0,0.00032876,2]
[322133705,1712835046049,-594.73748274,0.00032876,2]
[322133706,1712835046056,-1496.51,0.00032876,2]
[322133707,1712835046062,-500.0,0.00032876,2]
[322133708,1712835046069,-500.0,0.00032876,2]
[322133709,1712835046075,-500.0,0.00032876,2]
[322133710,1712835046084,-867.47,0.00032876,2]
[322133711,1712835046093,-2198.76,0.00032876,2]
[322133712,1712835046102,-500.0,0.00032876,2]
[322133713,1712835046111,-500.0,0.00032876,2]
[322133714,1712835046120,-500.0,0.00032876,2]
[322133715,1712835046130,-425.44774224,0.00032876,2]
[322133716,1712835046139,-500.0,0.00032876,2]
[322133717,1712835046147,-500.0,0.00032876,2]
[322133718,1712835046157,-2690.79,0.00032876,2]
[322133719,1712835046166,-500.0,0.00032876,2]
[322133720,1712835046175,-1131.4,0.00032876,2]
[322133721,1712835046184,-506.9494896,0.00032876,2]
[322133722,1712835046193,-500.0,0.00032876,2]
[322133723,1712835046203,-514.2564207,0.00032876,2]
[322133724,1712835046212,-230.87794081,0.00032876,2]
[322133725,1712835046221,-1383.74,0.00032876,2]
[322133726,1712835046231,-500.0,0.00032876,2]
[322133727,1712835046241,-500.0,0.00032876,2]
[322133728,1712835046250,-500.0,0.00032876,2]
[322133729,1712835046259,-500.0,0.00032876,2]
[322133730,1712835046269,-1873.71,0.00032876,2]
[322133731,1712835046278,-497.3984094,0.00032876,2]
[322133732,1712835046287,-500.0,0.00032876,2]
[322133733,1712835046470,-504.02619588,0.00032876,2]
[322133734,1712835046482,-1931.42,0.00032876,2]
[322133735,1712835046491,-500.0,0.00032876,2]
[322133736,1712835046500,-1068.08,0.00032876,2]
[322133737,1712835046510,-500.0,0.00032876,2]
[322133738,1712835046520,-500.0,0.00032876,2]
[322133739,1712835046529,-2308.41,0.00032876,2]
[322133740,1712835046538,-500.0,0.00032876,2]
[322133741,1712835046548,-500.0,0.00032876,2]
[322133742,1712835046557,-198.42489958,0.00032876,2]
[322133743,1712835046567,-500.0,0.00032876,2]
[322133744,1712835046576,-500.0,0.00032876,2]
[322133745,1712835046585,-500.0,0.00032876,2]
[322133746,1712835046595,-500.0,0.00032876,2]
[322133747,1712835046605,-1026.48,0.00032876,2]
[322133748,1712835046615,-500.0,0.00032876,2]
[322133749,1712835046625,-508.48613622,0.00032876,2]
[322133750,1712835046635,-500.0,0.00032876,2]
[322133751,1712835046644,-500.0,0.00032876,2]
[322133752,1712835046654,-500.0,0.00032876,2]
[322133753,1712835046663,-500.0,0.00032876,2]
[322133754,1712835046672,-500.0,0.00032876,2]
[322133755,1712835046682,-500.0,0.00032876,2]
[322133756,1712835046692,-500.0,0.00032876,2]
[322133757,1712835046703,-500.0,0.00032876,2]
[322133758,1712835046713,-500.0,0.00032876,2]
[322133759,1712835046722,-500.0,0.00032876,2]
[322133760,1712835046732,-500.0,0.00032876,2]
[322133761,1712835046741,-351.5633933,0.00032876,2]
[322133762,1712835046750,-500.0,0.00032876,2]
[322133763,1712835046759,-500.0,0.00032876,2]
[322133764,1712835046769,-500.0,0.00032876,2]
[322133765,1712835046778,-500.0,0.00032876,2]
[322133766,1712835046787,-1065.86,0.00032876,2]
[322133767,1712835046797,-500.0,0.00032876,2]
[322133768,1712835046807,-500.0,0.00032876,2]
[322133769,1712835046817,-500.0,0.00032876,2]
[322133770,1712835046826,-500.0,0.00032876,2]
[322133771,1712835046835,-390.61423865,0.00032876,2]
[322133772,1712835046844,-500.0,0.00032876,2]
[322133773,1712835046854,-500.0,0.00032876,2]
[322133774,1712835046863,-500.0,0.00032876,2]
[322133775,1712835046872,-500.0,0.00032876,2]
[322133776,1712835046884,-2134.7,0.00032876,2]
[322133777,1712835046893,-1188.97,0.00032876,2]
[322133778,1712835046902,-500.0,0.00032876,2]
[322133779,1712835046912,-500.0,0.00032876,2]
[322133780,1712835046921,-299.61502148,0.00032876,2]
[322133781,1712835046930,-994.75,0.00032876,2]
[322133782,1712835046940,-725.3,0.00032876,2]
[322133783,1712835046949,-500.0,0.00032876,2]
[322133784,1712835046958,-298.57372102,0.00032876,2]
[322133785,1712835046967,-500.0,0.00032876,2]
[322133786,1712835046977,-500.0,0.00032876,2]
[322133787,1712835046987,-500.0,0.00032876,2]
[322133788,1712835046996,-999.12,0.00032876,2]
[322133789,1712835047006,-500.0,0.00032876,2]
[322133790,1712835047015,-500.0,0.00032876,2]
[322133791,1712835047025,-500.0,0.00032876,2]
[322133792,1712835047034,-500.0,0.00032876,2]
[322133793,1712835047044,-6355.38,0.00032876,2]
[322133794,1712835047054,-2897.3,0.00032876,2]
[322133795,1712835047064,-500.0,0.00032876,2]
[322133796,1712835047075,-500.0,0.00032876,2]
[322133797,1712835047087,-500.0,0.00032876,2]
[322133798,1712835047099,-500.0,0.00032876,2]
[322133799,1712835047109,-504.61188528,0.00032876,2]
[322133800,1712835047120,-500.0,0.00032876,2]
[322133801,1712835047129,-501.33352252,0.00032876,2]
[322133802,1712835047138,-1879.05,0.00032876,2]
[322133803,1712835047148,-3431.09,0.00032876,2]
[322133804,1712835047157,-507.05256098,0.00032876,2]
[322133805,1712835047166,-500.0,0.00032876,2]
[322133806,1712835047176,-2369.14,0.00032876,2]
[322133807,1712835047185,-3889.09,0.00032876,2]
[322133808,1712835047195,-500.0,0.00032876,2]
[322133809,1712835047204,-500.0,0.00032876,2]
[322133810,1712835047213,-500.0,0.00032876,2]
[322133811,1712835047225,-1234.36,0.00032876,2]
[322133812,1712835047234,-500.0,0.00032876,2]
[322133813,1712835047244,-500.0,0.00032876,2]
[322133814,1712835047253,-500.0,0.00032876,2]
[322133815,1712835047262,-500.0,0.00032876,2]
[322133816,1712835047271,-539.33883502,0.00032876,2]
[322133817,1712835047281,-500.0,0.00032876,2]
[322133818,1712835047291,-500.0,0.00032876,2]
[322133819,1712835047302,-500.0,0.00032876,2]
[322133820,1712835047311,-13530.84,0.00032876,2]
[322133821,1712835047324,-500.0,0.00032876,2]
[322133822,1712835047334,-176.89615208,0.00032876,2]
[322133823,1712835047344,-500.0,0.00032876,2]
[322133824,1712835047353,-440.24188861,0.00032876,2]
[322133825,1712835047362,-2593.88,0.00032876,2]
[322133826,1712835047372,-500.0,0.00032876,2]
[322133827,1712835047382,-500.0,0.00032876,2]
[322133828,1712835047391,-1032.86,0.00032876,2]
[322133829,1712835047402,-2226.05,0.00032876,2]
[322133830,1712835047411,-500.0,0.00032876,2]
[322133831,1712835047420,-1270.84,0.00032876,2]
[322133832,1712835047430,-500.0,0.00032876,2]
[322133833,1712835047440,-500.0,0.00032876,2]
[322133834,1712835047450,-500.0,0.00032876,2]
[322133835,1712835047459,-793.38,0.00032876,2]
[322133836,1712835047468,-500.0,0.00032876,2]
[322133837,1712835047478,-500.80729144,0.00032876,2]
[322133838,1712835047487,-500.0,0.00032876,2]
[322133839,1712835047497,-500.0,0.00032876,2]
[322133840,1712835047507,-7032.67,0.00032876,2]
[322133841,1712835047516,-500.0,0.00032876,2]
[322133842,1712835047525,-4687.64,0.00032876,2]
[322133843,1712835047534,-500.0,0.00032876,2]
[322133844,1712835047543,-1881.1,0.00032876,2]
[322133845,1712835047553,-745.79,0.00032876,2]
[322133846,1712835047563,-500.0,0.00032876,2]
[322133847,1712835047572,-6368.65,0.00032876,2]
[322133848,1712835047581,-500.0,0.00032876,2]
[322133849,1712835047591,-500.0,0.00032876,2]
[322133850,1712835047600,-538.95849725,0.00032876,2]
[322133851,1712835047609,-500.0,0.00032876,2]
[322133852,1712835047618,-1378.01,0.00032876,2]
[322133853,1712835047628,-1267.48,0.00032876,2]
[322133854,1712835047637,-1157.91,0.00032876,2]
[322133855,1712835047647,-500.0,0.00032876,2]
[322133856,1712835047656,-500.0,0.00032876,2]
[322133857,1712835047666,-1557.9,0.00032876,2]
[322133858,1712835047675,-500.0,0.00032876,2]
[322133859,1712835047685,-13198.16,0.00032876,2]
[322133860,1712835047694,-54020.14,0.00032876,2]
[322133861,1712835047704,-500.0,0.00032876,2]
[322133862,1712835047713,-1171.34,0.00032876,2]
[322133863,1712835047723,-1220.0,0.00032876,2]
[322133864,1712835047733,-500.0,0.00032876,2]
[322133865,1712835047743,-539.62231422,0.00032876,2]
[322133866,1712835047753,-500.0,0.00032876,2]
[322133867,1712835047762,-500.0,0.00032876,2]
[322133868,1712835047772,-500.0,0.00032876,2]
[322133869,1712835047782,-500.0,0.00032876,2]
[322133870,1712835047792,-500.0,0.00032876,2]
[322133871,1712835047801,-1504.55,0.00032876,2]
[322133872,1712835047811,-500.0,0.00032876,2]
[322133873,1712835047821,-500.0,0.00032876,2]
[322133874,1712835047830,-500.0,0.00032876,2]
[322133875,1712835047841,-500.0,0.00032876,2]
[322133876,1712835047851,-3543.93,0.00032876,2]
[322133877,1712835047861,-10691.42,0.00032876,2]
[322133878,1712835047870,-1029.53,0.00032876,2]
[322133879,1712835047879,-500.0,0.00032876,2]
[322133880,1712835047889,-156.24740772,0.00032876,2]
[322133881,1712835047898,-3470.07,0.00032876,2]
[322133882,1712835047907,-500.0,0.00032876,2]
[322133883,1712835047917,-2106.52,0.00032876,2]
[322133884,1712835047926,-500.0,0.00032876,2]
[322133885,1712835047936,-1722.88,0.00032876,2]
[322133886,1712835047947,-500.0,0.00032876,2]
[322133887,1712835047957,-500.0,0.00032876,2]
[322133888,1712835047967,-500.0,0.00032876,2]
[322133889,1712835047978,-500.0,0.00032876,2]
[322133890,1712835047988,-500.0,0.00032876,2]
[322133891,1712835047997,-500.0,0.00032876,2]
[322133892,1712835048007,-500.0,0.00032876,2]
[322133893,1712835048017,-500.0,0.00032876,2]
[322133894,1712835048026,-504.38744126,0.00032876,2]
[322133895,1712835048035,-500.0,0.00032876,2]
[322133896,1712835048045,-500.0,0.00032876,2]
[322133897,1712835048055,-510.1502836,0.00032876,2]
[322133898,1712835048065,-500.0,0.00032876,2]
[322133899,1712835048074,-500.0,0.00032876,2]
[322133900,1712835048084,-614.25,0.00032876,2]
[322133901,1712835048093,-4560.63,0.00032876,2]
[322133902,1712835048103,-926.64,0.00032876,2]
[322133903,1712835048112,-6351.55,0.00032876,2]
[322133904,1712835048123,-1247.23,0.00032876,2]
[322133905,1712835048133,-500.0,0.00032876,2]
[322133906,1712835048144,-893.85,0.00032876,2]
[322133907,1712835048155,-500.0,0.00032876,2]
[322133908,1712835048164,-699.25,0.00032876,2]
[322133909,1712835048173,-500.0,0.00032876,2]
[322133910,1712835048182,-500.0,0.00032876,2]
[322133911,1712835048191,-3511.87,0.00032876,2]
[322133912,1712835048200,-7262.35,0.00032876,2]
[322133913,1712835048210,-500.0,0.00032876,2]
[322133914,1712835048220,-500.0,0.00032876,2]
[322133915,1712835048230,-500.0,0.00032876,2]
[322133916,1712835048239,-500.0,0.00032876,2]
[322133917,1712835048248,-506.85117664,0.00032876,2]
[322133918,1712835048257,-11686.68,0.00032876,2]
[322133919,1712835048267,-500.0,0.00032876,2]
[322133920,1712835048276,-500.0,0.00032876,2]
[322133921,1712835048285,-2332.5,0.00032876,2]
[322133922,1712835048295,-500.0,0.00032876,2]
[322133923,1712835048304,-1373.43,0.00032876,2]
[322133924,1712835048313,-500.0,0.00032876,2]
[322133925,1712835048324,-500.0,0.00032876,2]
[322133926,1712835048334,-11884.62,0.00032876,2]
[322133927,1712835048343,-500.0,0.00032876,2]
[322133928,1712835048352,-500.0,0.00032876,2]
[322133929,1712835048362,-500.0,0.00032876,2]
[322133930,1712835048372,-500.0,0.00032876,2]
[322133931,1712835048381,-3824.64,0.00032876,2]
[322133932,1712835048390,-519.58334681,0.00032876,2]
[322133933,1712835048399,-500.0,0.00032876,2]
[322133934,1712835048410,-4328.03,0.00032876,2]
[322133935,1712835048419,-518.84124056,0.00032876,2]
[322133936,1712835048428,-825.54,0.00032876,2]
[322133937,1712835048438,-500.0,0.00032876,2]
[322133938,1712835048447,-514.25153983,0.00032876,2]
[322133939,1712835048457,-500.0,0.00032876,2]
[322133940,1712835048466,-1099.17,0.00032876,2]
[322133941,1712835048475,-672.53,0.00032876,2]
[322133942,1712835048485,-3190.77,0.00032876,2]
[322133943,1712835048494,-1284.96,0.00032876,2]
[322133944,1712835048503,-713.85,0.00032876,2]
[322133945,1712835048512,-500.0,0.00032876,2]
[322133946,1712835048521,-2007.36,0.00032876,2]
[322133947,1712835048531,-2124.75,0.00032876,2]
[322133948,1712835048540,-1998.95,0.00032876,2]
[322133949,1712835048549,-500.0,0.00032876,2]
[322133950,1712835048558,-500.0,0.00032876,2]
[322133951,1712835048567,-500.0,0.00032876,2]
[322133952,1712835048576,-500.0,0.00032876,2]
[322133953,1712835048586,-1350.83,0.00032876,2]
[322133954,1712835048595,-632.99,0.00032876,2]
[322133955,1712835048604,-500.0,0.00032876,2]
[322133956,1712835048613,-13584.55,0.00032876,2]
[322133957,1712835048622,-500.52616154,0.00032876,2]
[322133958,1712835048631,-500.0,0.00032876,2]
[322133959,1712835048641,-500.0,0.00032876,2]
[322133960,1712835048650,-2366.01,0.00032876,2]
[322133961,1712835048660,-500.0,0.00032876,2]
[322133962,1712835048669,-500.0,0.00032876,2]
[322133963,1712835048678,-500.0,0.00032876,2]
[322133964,1712835048688,-2944.74,0.00032876,2]
[322133965,1712835048697,-504.49,0.00032876,2]
[322133966,1712835048706,-500.0,0.00032876,2]
[322133967,1712835048716,-2525.58,0.00032876,2]
[322133968,1712835048725,-500.0,0.00032876,2]
[322133969,1712835048734,-500.0,0.00032876,2]
[322133970,1712835048743,-500.0,0.00032876,2]
[322133971,1712835048753,-7406.72,0.00032876,2]
[322133972,1712835048762,-3228.21,0.00032876,2]
[322133973,1712835048772,-500.0,0.00032876,2]
[322133974,1712835048781,-500.0,0.00032876,2]
[322133975,1712835048790,-2113.48,0.00032876,2]
[322133976,1712835048800,-500.0,0.00032876,2]
[322133977,1712835048811,-1227.92,0.00032876,2]
[322133978,1712835048820,-696.94,0.00032876,2]
[322133979,1712835048830,-500.0,0.00032876,2]
[322133980,1712835049002,-500.0,0.00032876,2]
[322133981,1712835049012,-1870.39,0.00032876,2]
[322133982,1712835049022,-3043.15,0.00032876,2]
[322133983,1712835049032,-500.0,0.00032876,2]
[322133984,1712835049041,-500.0,0.00032876,2]
[322133985,1712835049050,-500.0,0.00032876,2]
[322133986,1712835049060,-5592.76,0.00032876,2]
[322133987,1712835049069,-153.94863071,0.00032876,2]
[322133988,1712835049078,-1502.01,0.00032876,2]
[322133989,1712835049087,-500.0,0.00032876,2]
[322133990,1712835049097,-403.24510067,0.00032876,2]
[322133991,1712835049106,-500.0,0.00032876,2]
[322133992,1712835049115,-20988.08,0.00032876,2]
[322133993,1712835049125,-506.19357103,0.00032876,2]
[322133994,1712835049134,-549.94,0.00032876,2]
[322133995,1712835049143,-500.0,0.00032876,2]
[322133996,1712835049153,-1923.19,0.00032876,2]
[322133997,1712835049163,-500.0,0.00032876,2]
[322133998,1712835049172,-500.0,0.00032876,2]
[322133999,1712835049181,-6647.45,0.00032876,2]
[322134000,1712835049191,-916.47,0.00032876,2]
[322134001,1712835049201,-3905.55,0.00032876,2]
[322134002,1712835049212,-3557.67,0.00032876,2]
[322134003,1712835049222,-3437.88,0.00032876,2]
[322134004,1712835049233,-500.0,0.00032876,2]
[322134005,1712835049243,-355.78788984,0.00032876,2]
[322134006,1712835049253,-1474.04,0.00032876,2]
[322134007,1712835049262,-500.0,0.00032876,2]
[322134008,1712835049271,-500.0,0.00032876,2]
[322134009,1712835049283,-500.0,0.00032876,2]
[322134010,1712835049292,-500.0,0.00032876,2]
[322134011,1712835049303,-1605.11,0.00032876,2]
[322134012,1712835049313,-1419.16,0.00032876,2]
[322134013,1712835049322,-500.0,0.00032876,2]
[322134014,1712835049336,-500.0,0.00032876,2]
[322134015,1712835049346,-500.0,0.00032876,2]
[322134016,1712835049356,-1059.11,0.00032876,2]
[322134017,1712835049367,-500.0,0.00032876,2]
[322134018,1712835049376,-500.0,0.00032876,2]
[322134019,1712835049386,-868.3,0.00032876,2]
[322134020,1712835049395,-500.0,0.00032876,2]
[322134021,1712835049405,-609.04,0.00032876,2]
[322134022,1712835049417,-2982.61,0.00032876,2]
[322134023,1712835049426,-500.0,0.00032876,2]
[322134024,1712835049435,-2809.3,0.00032876,2]
[322134025,1712835049444,-512.67864632,0.00032876,2]
[322134026,1712835049454,-643.37585138,0.00032876,2]
[322134027,1712835049463,-500.0,0.00032876,2]
[322134028,1712835049472,-500.0,0.00032876,2]
[322134029,1712835049483,-500.0,0.00032876,2]
[322134030,1712835049493,-500.0,0.00032876,2]
[322134031,1712835049502,-3735.12,0.00032876,2]
[322134032,1712835049511,-500.0,0.00032876,2]
[322134033,1712835049520,-55816.17,0.00032876,2]
[322134034,1712835049530,-510.91000367,0.00032876,2]
[322134035,1712835049539,-500.0,0.00032876,2]
[322134036,1712835049548,-1640.26,0.00032876,2]
[322134037,1712835049557,-730.0,0.00032876,2]
[322134038,1712835049566,-500.0,0.00032876,2]
[322134039,1712835049575,-500.0,0.00032876,2]
[322134040,1712835049584,-500.0,0.00032876,2]
[322134041,1712835049593,-1523.76,0.00032876,2]
[322134042,1712835049602,-500.0,0.00032876,2]
[322134043,1712835049611,-3745.24,0.00032876,2]
[322134044,1712835049620,-1249.71,0.00032876,2]
[322134045,1712835049629,-500.0,0.00032876,2]
[322134046,1712835049638,-20930.15,0.00032876,2]
[322134047,1712835049647,-4244.1,0.00032876,2]
[322134048,1712835049656,-500.0,0.00032876,2]
[322134049,1712835049664,-500.0,0.00032876,2]
[322134050,1712835049674,-500.0,0.00032876,2]
[322134051,1712835049683,-500.0,0.00032876,2]
[322134052,1712835049692,-500.0,0.00032876,2]
[322134053,1712835049701,-596.96751034,0.00032876,2]
[322134054,1712835049710,-500.0,0.00032876,2]
[322134055,1712835049719,-500.0,0.00032876,2]
[322134056,1712835049728,-1086.74,0.00032876,2]
[322134057,1712835049737,-2078.36,0.00032876,2]
[322134058,1712835049746,-500.0,0.00032876,2]
[322134059,1712835049754,-500.0,0.00032876,2]
[322134060,1712835049764,-339.59751781,0.00032876,2]
[322134061,1712835049773,-2432.97,0.00032876,2]
[322134062,1712835049782,-1829.89,0.00032876,2]
[322134063,1712835049792,-500.0,0.00032876,2]
[322134064,1712835049801,-500.0,0.00032876,2]
[322134065,1712835049810,-3086.96,0.00032876,2]
[322134066,1712835049820,-500.0,0.00032876,2]
[322134067,1712835049829,-208.04763402,0.00032876,2]
[322134068,1712835049839,-500.0,0.00032876,2]
[322134069,1712835049849,-162.7327473,0.00032876,2]
[322134070,1712835049858,-259.69583894,0.00032876,2]
[322134071,1712835049867,-500.0,0.00032876,2]
[322134072,1712835049877,-509.43733689,0.00032876,2]
[322134073,1712835049886,-514.92344661,0.00032876,2]
[322134074,1712835049895,-500.0,0.00032876,2]
[322134075,1712835049904,-500.0,0.00032876,2]
[322134076,1712835049914,-2954.68,0.00032876,2]
[322134077,1712835049923,-1882.03,0.00032876,2]
[322134078,1712835049932,-500.0,0.00032876,2]
[322134079,1712835049943,-670.59,0.00032876,2]
[322134080,1712835049954,-500.0,0.00032876,2]
[322134081,1712835049964,-1566.47,0.00032876,2]
[322134082,1712835049974,-321.60470602,0.00032876,2]
[322134083,1712835049984,-500.0,0.00032876,2]
[322134084,1712835049993,-3731.14,0.00032876,2]
[322134085,1712835050003,-500.0,0.00032876,2]
[322134086,1712835050012,-500.0,0.00032876,2]
[322134087,1712835050021,-500.0,0.00032876,2]
[322134088,1712835050031,-500.0,0.00032876,2]
[322134089,1712835050040,-500.0,0.00032876,2]
[322134090,1712835050050,-500.0,0.00032876,2]
[322134091,1712835050060,-500.0,0.00032876,2]
[322134092,1712835050070,-6661.49,0.00032876,2]
[322134093,1712835050079,-500.0,0.00032876,2]
[322134094,1712835050094,-500.0,0.00032876,2]
[322134095,1712835050116,-500.0,0.00032876,2]
[322134096,1712835050134,-330.54922493,0.00032876,2]
[322134097,1712835050155,-630.86,0.00032876,2]
[322134098,1712835050172,-9484.52,0.00032876,2]
[322134099,1712835050192,-500.0,0.00032876,2]
[322134100,1712835050213,-481.81214221,0.00032876,2]
[322134101,1712835050230,-500.0,0.00032876,2]
[322134102,1712835050251,-500.0,0.00032876,2]
[322134103,1712835050269,-500.0,0.00032876,2]
[322134104,1712835050288,-857.06,0.00032876,2]
[322134105,1712835050312,-565.26,0.00032876,2]
[322134106,1712835050331,-500.0,0.00032876,2]
[322134107,1712835050348,-500.0,0.00032876,2]
[322134108,1712835050366,-500.0,0.00032876,2]
[322134109,1712835050380,-2727.08,0.00032876,2]
[322134110,1712835050397,-3007.03,0.00032876,2]
[322134111,1712835050415,-3482.84,0.00032876,2]
[322134112,1712835050431,-500.0,0.00032876,2]
[322134113,1712835050446,-4735.27,0.00032876,2]
[322134114,1712835050461,-19804.73,0.00032876,2]
[322134115,1712835050479,-500.0,0.00032876,2]
[322134116,1712835050494,-840.21,0.00032876,2]
[322134117,1712835050509,-500.0,0.00032876,2]
[322134118,1712835050524,-500.0,0.00032876,2]
[322134119,1712835050540,-501.51725365,0.00032876,2]
[322134120,1712835050556,-500.0,0.00032876,2]
[322134121,1712835050571,-500.0,0.00032876,2]
[322134122,1712835050588,-500.0,0.00032876,2]
[322134123,1712835050603,-500.0,0.00032876,2]
[322134124,1712835050619,-3163.69,0.00032876,2]
[322134125,1712835050634,-500.0,0.00032876,2]
[322134126,1712835050649,-500.0,0.00032876,2]
[322134127,1712835050664,-6111.33,0.00032876,2]
[322134128,1712835050686,-256.84367807,0.00032876,2]
[322134129,1712835050701,-500.0,0.00032876,2]
[322134130,1712835050715,-500.0,0.00032876,2]
[322134131,1712835050730,-2684.18,0.00032876,2]
[322134132,1712835050746,-500.0,0.00032876,2]
[322134133,1712835050761,-4736.13,0.00032876,2]
[322134134,1712835050777,-784.91,0.00032876,2]
[322134135,1712835050792,-512.37472889,0.00032876,2]
[322134136,1712835050808,-709.71,0.00032876,2]
[322134137,1712835050824,-500.0,0.00032876,2]
[322134138,1712835050839,-3960.63,0.00032876,2]
[322134139,1712835050854,-500.0,0.00032876,2]
[322134140,1712835050870,-500.0,0.00032876,2]
[322134141,1712835050886,-500.0,0.00032876,2]
[322134142,1712835050902,-6946.56,0.00032876,2]
[322134143,1712835050918,-1462.73,0.00032876,2]
[322134144,1712835050933,-500.0,0.00032876,2]
[322134145,1712835050949,-4450.97,0.00032876,2]
[322134146,1712835050965,-1864.01,0.00032876,2]
[322134147,1712835050981,-1900.65,0.00032876,2]
[322134148,1712835050996,-500.0,0.00032876,2]
[322134149,1712835051012,-344.0821599,0.00032876,2]
[322134150,1712835052341,-2012.8078401,0.00032876,2]
[322134151,1712835052351,-307.20513487,0.00032876,2]
[322134152,1712835052361,-5300.08,0.00032876,2]
[322134153,1712835052370,-3507.02,0.00032876,2]
[322134154,1712835052380,-450.44886452,0.00032876,2]
[322134155,1712835052389,-500.0,0.00032876,2]
[322134156,1712835052398,-500.0,0.00032876,2]
[322134157,1712835052409,-500.0,0.00032876,2]
[322134158,1712835052419,-500.0,0.00032876,2]
[322134159,1712835052430,-500.0,0.00032876,2]
[322134160,1712835052439,-382.72544582,0.00032876,2]
[322134161,1712835052449,-1398.3,0.00032876,2]
[322134162,1712835052458,-500.0,0.00032876,2]
[322134163,1712835052468,-500.0,0.00032876,2]
[322134164,1712835052477,-5049.28,0.00032876,2]
[322134165,1712835052487,-1330.68,0.00032876,2]
[322134166,1712835052497,-500.0,0.00032876,2]
[322134167,1712835052506,-500.0,0.00032876,2]